bitfinex/quotes_BTCUSD_20250908
["timestamp","ask_amount","ask_price","bid_price","bid_amount"]
[1757299661997,0.18682624,111290.0,111280.0,0.52778944]
[1757299662809,0.00711558,111290.0,111280.0,0.52778944]
[1757299663200,0.18682624,111290.0,111280.0,0.52778944]
[1757299663622,0.18682624,111290.0,111280.0,0.52462944]
[1757299663826,0.18682624,111290.0,111280.0,0.34274263]
[1757299664023,0.18682624,111290.0,111280.0,0.52246944]
[1757299665423,0.18682624,111290.0,111280.0,0.52462944]
[1757299665991,0.18682624,111290.0,111280.0,0.52246944]
[1757299667803,0.00711558,111290.0,111280.0,0.71629207]
[1757299667998,0.18682624,111290.0,111280.0,0.71629207]
[1757299668767,0.18682624,111290.0,111280.0,0.52778944]
[1757299669162,0.00711558,111290.0,111280.0,0.52778944]
[1757299670065,0.18682624,111290.0,111280.0,0.52778944]
[1757299673305,0.00711558,111290.0,111280.0,0.52778944]
[1757299673508,0.00711558,111290.0,111280.0,0.71629207]
[1757299673509,0.00512558,111290.0,111280.0,0.71629207]
[1757299676108,0.18483624,111290.0,111280.0,0.71629207]
[1757299676316,0.00512558,111290.0,111280.0,0.71629207]
[1757299677454,0.18483624,111290.0,111280.0,0.71629207]
[1757299677714,0.18483624,111290.0,111280.0,0.52778944]
[1757299677898,0.18483624,111290.0,111280.0,0.71629207]
[1757299678339,0.00512558,111290.0,111280.0,0.71629207]
[1757299682043,0.00512558,111290.0,111280.0,0.52778944]
[1757299685234,0.00719558,111290.0,111280.0,0.33928681]
[1757299685430,0.00512558,111290.0,111280.0,0.52778944]
[1757299686254,0.18483624,111290.0,111280.0,0.52778944]
[1757299686480,0.00512558,111290.0,111280.0,0.52779066]
[1757299689536,0.18690624,111290.0,111280.0,0.52767066]
[1757299690649,0.00719558,111290.0,111280.0,0.52767066]
[1757299691656,0.18690624,111290.0,111280.0,0.52767066]
[1757299692504,0.00512558,111290.0,111280.0,0.52767066]
[1757299693311,0.00512558,111290.0,111280.0,0.64052547]
[1757299693747,0.18690624,111290.0,111280.0,0.63732547]
[1757299693959,0.00719558,111290.0,111280.0,0.64033547]
[1757299694601,0.18690624,111290.0,111280.0,0.19366385]
[1757299694821,0.19001624,111290.0,111280.0,0.003]
[1757299695027,0.19001624,111290.0,111280.0,0.18272681]
[1757299695232,0.19001624,111290.0,111280.0,0.003]
[1757299695812,0.19001624,111290.0,111280.0,0.18272681]
[1757299698554,0.19001624,111290.0,111280.0,0.003]
[1757299698767,0.19001624,111290.0,111280.0,0.15408]
[1757299699175,0.19001624,111290.0,111280.0,0.33380681]
[1757299699392,0.19001624,111290.0,111280.0,0.15408]
[1757299699607,0.19001624,111290.0,111280.0,0.15404]
[1757299702111,0.19001624,111290.0,111280.0,0.33376681]
[1757299704214,0.18690624,111290.0,111280.0,0.33376681]
[1757299704399,0.18998624,111290.0,111280.0,0.003]
[1757299704620,0.18998624,111290.0,111280.0,0.15404]
[1757299706680,0.18998624,111290.0,111280.0,0.33376681]
[1757299706915,0.18690624,111290.0,111280.0,0.33376681]
[1757299707364,0.18690624,111290.0,111280.0,0.15404]
[1757299707612,0.18998624,111290.0,111280.0,0.15404]
[1757299708358,0.18998624,111290.0,111280.0,0.33376681]
[1757299708968,0.18998624,111290.0,111280.0,0.15404]
[1757299710713,0.18998624,111290.0,111280.0,0.003]
[1757299710714,0.47040608,111290.0,111280.0,0.003]
[1757299710921,0.49482608,111290.0,111280.0,0.003]
[1757299713864,0.64582608,111290.0,111280.0,0.003]
[1757299714300,0.17974296,111270.0,111260.0,0.33974588]
[1757299714521,0.18174296,111270.0,111260.0,0.34484588]
[1757299715972,0.18274296,111270.0,111260.0,0.34484588]
[1757299716178,0.18274296,111270.0,111260.0,0.53334973]
[1757299716542,0.18374296,111270.0,111260.0,0.53334973]
[1757299716747,0.18374296,111270.0,111260.0,0.56034418]
[1757299718510,0.18374296,111270.0,111260.0,0.55135742]
[1757299718719,0.18374296,111270.0,111260.0,0.3715983]
[1757299719088,0.18374296,111270.0,111260.0,0.17799445]
[1757299719407,0.18374296,111270.0,111260.0,0.151]
[1757299719408,0.18682296,111270.0,111260.0,0.151]
[1757299721002,0.18682296,111270.0,111250.0,0.47330234]
[1757299721212,0.17975912,111260.0,111250.0,0.09603445]
[1757299721397,0.18175912,111260.0,111250.0,0.24699445]
[1757299722373,0.18175912,111260.0,111250.0,0.09903445]
[1757299722588,0.18175912,111260.0,111250.0,0.25099445]
[1757299722816,0.18483912,111260.0,111250.0,0.24799445]
[1757299723018,0.18483912,111260.0,111250.0,0.25199445]
[1757299723738,0.18483912,111260.0,111250.0,0.25099445]
[1757299723956,0.18483912,111260.0,111250.0,0.24699445]
[1757299725958,0.18175912,111260.0,111250.0,0.24899445]
[1757299726159,0.18375912,111260.0,111250.0,0.24899445]
[1757299726355,0.18475912,111260.0,111250.0,0.24899445]
[1757299726757,0.18475912,111260.0,111250.0,0.61924358]
[1757299726962,0.18475912,111260.0,111250.0,0.62237358]
[1757299727414,0.18275912,111260.0,111250.0,0.62237358]
[1757299727815,0.18475912,111260.0,111250.0,0.62237358]
[1757299728020,0.18475912,111260.0,111250.0,0.4425983]
[1757299728247,0.18475912,111260.0,111250.0,0.62237358]
[1757299728663,0.18475912,111260.0,111250.0,0.63237358]
[1757299729705,0.18475912,111260.0,111250.0,0.4525983]
[1757299730107,0.18475912,111260.0,111250.0,0.63237358]
[1757299730756,0.18475912,111260.0,111250.0,0.4525983]
[1757299730959,0.18475912,111260.0,111250.0,0.26409445]
[1757299731716,0.18275912,111260.0,111250.0,0.44386973]
[1757299731944,0.18275912,111260.0,111250.0,0.6533124]
[1757299732350,0.003,111260.0,111250.0,0.6533124]
[1757299732784,0.18275912,111260.0,111250.0,0.6533124]
[1757299732991,0.18275912,111260.0,111250.0,0.46480855]
[1757299733195,0.18471912,111260.0,111250.0,0.32257712]
[1757299733378,0.18471912,111260.0,111250.0,0.47353712]
[1757299733556,0.18471912,111260.0,111250.0,0.32257712]
[1757299733770,0.18774912,111260.0,111250.0,0.03899445]
[1757299733932,0.52717297,111260.0,111250.0,0.012]
[1757299734568,0.55417138,111260.0,111250.0,0.012]
[1757299734994,0.36566753,111260.0,111250.0,0.012]
[1757299735402,0.55417138,111260.0,111250.0,0.012]
[1757299737300,0.64608737,111260.0,111250.0,0.012]
[1757299740387,0.67011737,111260.0,111250.0,0.012]
[1757299741372,0.70980719,111260.0,111250.0,0.012]
[1757299742038,0.73781018,111260.0,111250.0,0.012]
[1757299742500,1.12481018,111260.0,111250.0,0.01]
[1757299742725,1.14418598,111260.0,111250.0,0.01]
[1757299743408,1.14618598,111260.0,111250.0,0.01]
[1757299743615,0.96726299,111260.0,111250.0,0.01]
[1757299744043,1.12118299,111260.0,111250.0,0.01]
[1757299744261,0.88267914,111260.0,111250.0,0.01]
[1757299744474,0.92026299,111260.0,111250.0,0.01]
[1757299744682,1.07118299,111260.0,111250.0,0.01]
[1757299745136,1.07318299,111260.0,111250.0,0.01]
[1757299745355,0.92226299,111260.0,111250.0,0.01]
[1757299745562,1.04980719,111260.0,111250.0,0.01]
[1757299745971,1.05380719,111260.0,111250.0,0.01]
[1757299746331,1.05399415,111260.0,111250.0,0.01]
[1757299746569,1.05699415,111260.0,111250.0,0.01]
[1757299749152,0.19171912,111260.0,111250.0,0.01]
[1757299749370,0.33667912,111260.0,111250.0,0.20383081]
[1757299749598,0.33067912,111260.0,111250.0,0.20383081]
[1757299750072,0.33863912,111260.0,111250.0,0.20383081]
[1757299750296,0.34166912,111260.0,111250.0,0.01]
[1757299750967,0.36866746,111260.0,111250.0,0.01]
[1757299751188,0.36566746,111260.0,111250.0,0.01]
[1757299751399,0.35767746,111260.0,111250.0,0.01514]
[1757299751627,0.35867746,111260.0,111250.0,0.20383081]
[1757299752507,0.36067746,111260.0,111250.0,0.20383081]
[1757299752946,0.35867746,111260.0,111250.0,0.01514]
[1757299753666,0.35767746,111260.0,111250.0,0.01514]
[1757299754110,0.35967746,111260.0,111250.0,0.01514]
[1757299754318,0.36163746,111260.0,111250.0,0.01195]
[1757299754529,0.36266746,111260.0,111250.0,0.01]
[1757299754955,0.35963746,111260.0,111250.0,0.01514]
[1757299755158,0.36063746,111260.0,111250.0,0.01514]
[1757299755539,0.36063746,111260.0,111250.0,0.20064081]
[1757299755758,0.35863746,111260.0,111250.0,0.38360609]
[1757299755970,0.33163912,111260.0,111250.0,0.20383081]
[1757299756655,0.33359912,111260.0,111250.0,0.01514]
[1757299756888,0.33359912,111260.0,111250.0,0.20383081]
[1757299757631,0.33359912,111260.0,111250.0,0.20064081]
[1757299757864,0.33662912,111260.0,111250.0,0.01]
[1757299758284,0.33359912,111260.0,111250.0,0.01]
[1757299758487,0.33359912,111260.0,111250.0,0.19869081]
[1757299759137,0.33662912,111260.0,111250.0,0.01]
[1757299759346,0.33359912,111260.0,111250.0,0.01514]
[1757299759768,0.33359912,111260.0,111250.0,0.01195]
[1757299760053,0.33163912,111260.0,111250.0,0.38360609]
[1757299760491,0.33163912,111260.0,111250.0,0.20383081]
[1757299761998,0.18075912,111260.0,111250.0,0.38360609]
[1757299762210,0.18075912,111260.0,111250.0,0.35471081]
[1757299762414,0.18075912,111260.0,111250.0,0.53448609]
[1757299764558,0.18075912,111260.0,111250.0,0.35467081]
[1757299764770,0.18075912,111260.0,111250.0,0.53444609]
[1757299766468,0.001,111260.0,111250.0,0.83599171]
[1757299766929,0.001,111260.0,111250.0,0.86298439]
[1757299767585,0.17974452,111270.0,111260.0,0.17975912]
[1757299767791,0.17974452,111270.0,111260.0,0.55917074]
[1757299768024,0.17974452,111270.0,111260.0,0.56226074]
[1757299768243,0.33956786,111280.0,111260.0,0.56226074]
[1757299768458,0.33956786,111280.0,111270.0,0.18869081]
[1757299768681,0.33956786,111280.0,111270.0,0.19178081]
[1757299768901,0.33956786,111280.0,111270.0,0.19381081]
[1757299769740,0.34156786,111280.0,111270.0,0.19381081]
[1757299769944,0.33956786,111280.0,111270.0,0.19381081]
[1757299770158,0.18872786,111280.0,111270.0,0.37355377]
[1757299770584,0.36665445,111290.0,111280.0,0.17972681]
[1757299770794,0.33966177,111290.0,111280.0,0.19381081]
[1757299771001,0.33966177,111290.0,111280.0,0.37353762]
[1757299772128,0.34566177,111290.0,111280.0,0.19381081]
[1757299772357,0.34566177,111290.0,111280.0,0.37353762]
[1757299772525,0.19482177,111290.0,111280.0,0.37353762]
[1757299773335,0.00612558,111290.0,111280.0,0.37353762]
[1757299773733,0.18583624,111290.0,111280.0,0.56222843]
[1757299773996,0.18583624,111290.0,111280.0,0.34461081]
[1757299774402,0.18583624,111290.0,111280.0,0.52433762]
[1757299775031,0.18583624,111290.0,111280.0,0.34461081]
[1757299775267,0.17972681,111280.0,111270.0,0.23076234]
[1757299775460,0.17972681,111280.0,111270.0,0.66419914]
[1757299776407,0.17972681,111280.0,111270.0,0.63720858]
[1757299776809,0.18172681,111280.0,111270.0,0.48640858]
[1757299777038,0.18172681,111280.0,111270.0,0.63720858]
[1757299777454,0.18372681,111280.0,111270.0,0.63720858]
[1757299777971,0.18372681,111280.0,111270.0,0.48640858]
[1757299778171,0.18372681,111280.0,111270.0,0.63720858]
[1757299779670,0.18578681,111280.0,111270.0,0.20580178]
[1757299779884,0.17974296,111270.0,111260.0,0.30880405]
[1757299780094,0.17974296,111270.0,111260.0,0.93093166]
[1757299780555,0.17974296,111270.0,111260.0,0.9039435]
[1757299781437,0.17974296,111270.0,111260.0,0.7531435]
[1757299781665,0.001,111270.0,111260.0,0.9039435]
[1757299782555,0.18074296,111270.0,111260.0,0.9039035]
[1757299782744,0.001,111270.0,111260.0,0.9039035]
[1757299784588,0.001,111270.0,111260.0,0.52652188]
[1757299784806,0.001,111270.0,111260.0,0.9039035]
[1757299791878,0.001,111270.0,111260.0,0.7531435]
[1757299792100,0.001,111270.0,111260.0,0.9039035]
[1757299795169,0.001,111270.0,111260.0,0.7531435]
[1757299795381,0.001,111270.0,111260.0,0.9039035]
[1757299796937,0.18074296,111270.0,111260.0,0.7531435]
[1757299797159,0.001,111270.0,111260.0,0.9038635]
[1757299798352,0.001,111270.0,111260.0,0.58820993]
[1757299798353,0.18273296,111270.0,111260.0,0.58820993]
[1757299798756,0.001,111270.0,111260.0,0.59355993]
[1757299798964,0.001,111270.0,111260.0,0.78225074]
[1757299799618,0.001,111270.0,111260.0,0.40486912]
[1757299799784,0.001,111270.0,111260.0,0.78225074]
[1757299802115,0.001,111270.0,111260.0,0.40486912]
[1757299802327,0.18074296,111270.0,111260.0,0.78225074]
[1757299802536,0.001,111270.0,111260.0,0.78225074]
[1757299805169,0.001,111270.0,111260.0,0.63153074]
[1757299805380,0.001,111270.0,111260.0,0.78225074]
[1757299806658,0.001,111270.0,111260.0,0.40486912]
[1757299806871,0.001,111270.0,111260.0,0.78225074]
[1757299808365,0.001,111270.0,111260.0,0.59344328]
[1757299808810,0.001,111270.0,111260.0,0.51772393]
[1757299809037,0.001,111270.0,111260.0,1.23487225]
[1757299809387,0.001,111270.0,111260.0,1.32612898]
[1757299809675,0.001,111270.0,111260.0,1.13755482]
[1757299810258,0.001,111270.0,111260.0,1.32612898]
[1757299810439,0.001,111270.0,111260.0,1.72612898]
[1757299812501,0.00012558,111290.0,111260.0,1.73511693]
[1757299812710,0.00012558,111290.0,111280.0,0.38923979]
[1757299812935,0.00012558,111290.0,111280.0,0.63191578]
[1757299813138,0.00012558,111290.0,111280.0,0.63726578]
[1757299814067,0.00012558,111290.0,111280.0,0.97726578]
[1757299814633,0.00012558,111290.0,111280.0,0.98126578]
[1757299815062,0.00012558,111290.0,111280.0,0.83050578]
[1757299815261,0.00012558,111290.0,111280.0,0.98122578]
[1757299815467,0.00012558,111290.0,111280.0,0.98422578]
[1757299818200,0.00012558,111290.0,111280.0,0.79565162]
[1757299818446,0.00012558,111290.0,111280.0,0.98422578]
[1757299825707,0.00012558,111290.0,111280.0,0.79565162]
[1757299825925,0.17983624,111290.0,111280.0,0.64493162]
[1757299826163,0.18491624,111290.0,111280.0,0.007]
[1757299827076,0.18491624,111290.0,111280.0,0.004]
[1757299827306,0.17972681,111280.0,111270.0,0.80623594]
[1757299827556,0.17972681,111280.0,111270.0,0.90028193]
[1757299828102,0.17972681,111280.0,111270.0,0.72053897]
[1757299828308,0.17972681,111280.0,111270.0,0.90028193]
[1757299828717,0.17972681,111280.0,111270.0,0.90428193]
[1757299829751,0.17972681,111280.0,111270.0,0.90728193]
[1757299831781,0.17972681,111280.0,111270.0,0.64408193]
[1757299833086,0.17972681,111280.0,111270.0,0.45550777]
[1757299833296,0.17972681,111280.0,111270.0,0.64408193]
[1757299833503,0.17972681,111280.0,111270.0,0.49340193]
[1757299833723,0.17972681,111280.0,111270.0,0.64408193]
[1757299835196,0.17972681,111280.0,111270.0,0.49340193]
[1757299835409,0.17972681,111280.0,111270.0,0.64408193]
[1757299835620,0.18083624,111290.0,111280.0,0.17972681]
[1757299835821,0.18083624,111290.0,111280.0,0.51898097]
[1757299836002,0.18083624,111290.0,111280.0,0.52421097]
[1757299836627,0.17983624,111290.0,111280.0,0.52421097]
[1757299837805,0.17983624,111290.0,111280.0,0.34448416]
[1757299838016,0.18180624,111290.0,111280.0,0.15591]
[1757299838234,0.18280624,111290.0,111280.0,0.15815658]
[1757299838667,0.18083624,111290.0,111280.0,0.33788339]
[1757299838881,0.18083624,111290.0,111280.0,0.15591]
[1757299839084,0.18280624,111290.0,111280.0,0.15815658]
[1757299839673,0.18280624,111290.0,111280.0,0.15505658]
[1757299839895,0.18280624,111290.0,111280.0,0.15815658]
[1757299843708,0.18083624,111290.0,111280.0,0.15815658]
[1757299844136,0.18280624,111290.0,111280.0,0.15815658]
[1757299844345,0.18280624,111290.0,111280.0,0.15505658]
[1757299844690,0.18280624,111290.0,111280.0,0.15815658]
[1757299845312,0.18083624,111290.0,111280.0,0.15815658]
[1757299845936,0.18083624,111290.0,111280.0,0.52645755]
[1757299846177,0.18083624,111290.0,111280.0,0.52421097]
[1757299846366,0.18083624,111290.0,111280.0,0.34448416]
[1757299846564,0.18280624,111290.0,111280.0,0.15591]
[1757299846773,0.18280624,111290.0,111280.0,0.15815658]
[1757299847177,0.18280624,111290.0,111280.0,0.34673074]
[1757299847383,0.18280624,111290.0,111280.0,0.34448416]
[1757299851644,0.18083624,111290.0,111280.0,0.52421097]
[1757299851820,0.00112558,111290.0,111280.0,0.63706578]
[1757299852258,0.00112558,111290.0,111280.0,0.6640521]
[1757299855313,0.00112558,111290.0,111280.0,0.7330921]
[1757299855595,0.00112558,111290.0,111280.0,0.5824121]
[1757299855809,0.00112558,111290.0,111280.0,0.7330921]
[1757299856406,0.18083624,111290.0,111280.0,0.39383794]
[1757299856603,0.18083624,111290.0,111280.0,0.7330921]
[1757299856804,0.00112558,111290.0,111280.0,0.7330921]
[1757299858521,0.18083624,111290.0,111280.0,0.7330921]
[1757299858956,0.18280624,111290.0,111280.0,0.7330921]
[1757299859182,0.00309558,111290.0,111280.0,0.7330921]
[1757299859457,0.00112558,111290.0,111280.0,0.7330921]
[1757299859665,0.18083624,111290.0,111280.0,0.5824121]
[1757299859871,0.18083624,111290.0,111280.0,0.7330921]
[1757299860080,0.00112558,111290.0,111280.0,0.7330921]
[1757299861778,0.00112558,111290.0,111280.0,0.54451794]
[1757299862191,0.00112558,111290.0,111280.0,0.7330921]
[1757299864895,0.18280624,111290.0,111280.0,0.09602632]
[1757299865105,0.18586624,111290.0,111280.0,0.17762632]
[1757299865288,0.18586624,111290.0,111280.0,0.15064]
[1757299867347,0.17972681,111280.0,111270.0,0.57650277]
[1757299867567,0.18169681,111280.0,111270.0,0.90688573]
[1757299867795,0.18169681,111280.0,111270.0,0.90901573]
[1757299867978,0.18169681,111280.0,111270.0,0.91194573]
[1757299868442,0.17972681,111280.0,111270.0,0.91194573]
[1757299868661,0.18083624,111290.0,111280.0,0.17972681]
[1757299868874,0.18280624,111290.0,111280.0,0.17972681]
[1757299869085,0.18180624,111290.0,111280.0,0.17972681]
[1757299869294,0.18180624,111290.0,111270.0,0.91381573]
[1757299869500,0.18180624,111290.0,111280.0,0.17972681]
[1757299869718,0.18180624,111290.0,111270.0,0.91281573]
[1757299869924,0.18180624,111290.0,111270.0,0.90981573]
[1757299870387,0.18280624,111290.0,111280.0,0.18853333]
[1757299870611,0.00112558,111290.0,111280.0,0.67470828]
[1757299870884,0.00012558,111290.0,111280.0,0.67470828]
[1757299871106,0.00012558,111290.0,111280.0,0.70169443]
[1757299871767,0.00012558,111290.0,111280.0,0.89022776]
[1757299871994,0.00012558,111290.0,111280.0,1.23022776]
[1757299872215,0.00012558,111290.0,111280.0,1.29449606]
[1757299872435,0.00012558,111290.0,111280.0,1.63022776]
[1757299872883,0.00112558,111290.0,111280.0,1.69449606]
[1757299873319,0.00012558,111290.0,111280.0,1.69449606]
[1757299873533,0.00012558,111290.0,111280.0,1.70349606]
[1757299874325,0.00112558,111290.0,111280.0,1.70949606]
[1757299875013,0.00112558,111290.0,111280.0,1.14389607]
[1757299875175,0.00112558,111290.0,111280.0,1.45669443]
[1757299875336,0.00112558,111290.0,111280.0,1.60733443]
[1757299876916,0.00112558,111290.0,111280.0,1.45669443]
[1757299877124,0.00112558,111290.0,111280.0,1.60733443]
[1757299877361,0.00112558,111290.0,111280.0,1.60737443]
[1757299879342,0.00112558,111290.0,111280.0,1.45669443]
[1757299879529,0.00112558,111290.0,111280.0,1.60733443]
[1757299880178,0.00112558,111290.0,111280.0,1.23026777]
[1757299880414,0.00112558,111290.0,111280.0,1.45669443]
[1757299880634,0.00112558,111290.0,111280.0,1.60733443]
[1757299881362,0.00112558,111290.0,111280.0,1.20733443]
[1757299882251,0.00112558,111290.0,111280.0,1.47053443]
[1757299884466,0.00112558,111290.0,111280.0,0.94282777]
[1757299884679,0.00112558,111290.0,111280.0,1.47053443]
[1757299884918,0.00112558,111290.0,111280.0,0.94282777]
[1757299885142,0.18296624,111290.0,111280.0,0.91422096]
[1757299885371,0.18296624,111290.0,111280.0,1.2824811]
[1757299885584,0.18296624,111290.0,111280.0,1.10275429]
[1757299886561,0.37473957,111290.0,111280.0,0.04198615]
[1757299886750,0.37473957,111290.0,111280.0,0.19310615]
[1757299887001,0.37473957,111290.0,111280.0,0.19318615]
[1757299887214,0.37473957,111290.0,111280.0,0.1662]
[1757299888973,0.18620624,111290.0,111280.0,0.1512]
[1757299889167,0.37473957,111290.0,111280.0,0.1512]
[1757299889428,0.37673957,111290.0,111280.0,0.1512]
[1757299890769,0.17972681,111280.0,111270.0,0.02698979]
[1757299891243,0.17972681,111280.0,111250.0,0.27079404]
[1757299891244,0.17975912,111260.0,111250.0,0.27079404]
[1757299891455,0.17975912,111260.0,111250.0,0.60133536]
[1757299891690,0.17975912,111260.0,111250.0,1.09249536]
[1757299891905,0.17974296,111270.0,111250.0,1.09249536]
[1757299892379,0.17974296,111270.0,111260.0,0.18853333]
[1757299892611,0.18187296,111270.0,111260.0,0.18853333]
[1757299893848,0.18187296,111270.0,111260.0,0.19353333]
[1757299894694,0.18511296,111270.0,111260.0,0.15612]
[1757299894930,0.18511296,111270.0,111260.0,0.34465333]
[1757299895148,0.17974296,111270.0,111260.0,0.52956245]
[1757299896001,0.21894634,111280.0,111260.0,0.52956245]
[1757299896200,0.17974296,111270.0,111260.0,0.52956245]
[1757299896892,0.18871315,111280.0,111260.0,0.52456245]
[1757299897328,0.17974296,111270.0,111260.0,0.52656245]
[1757299897545,0.17974296,111270.0,111260.0,0.71509578]
[1757299897769,0.18871315,111280.0,111270.0,0.17974296]
[1757299897971,0.18871315,111280.0,111270.0,0.36827629]
[1757299898159,0.19084315,111280.0,111270.0,0.17974296]
[1757299899029,0.19084315,111280.0,111260.0,0.37428245]
[1757299899267,0.19184315,111280.0,111270.0,0.15108]
[1757299899480,0.19184315,111280.0,111270.0,0.33082296]
[1757299899690,0.19384315,111280.0,111270.0,0.15108]
[1757299900120,0.19084315,111280.0,111270.0,0.15108]
[1757299902321,0.19284315,111280.0,111270.0,0.15108]
[1757299902730,0.19384315,111280.0,111270.0,0.15108]
[1757299903382,0.18272681,111280.0,111270.0,0.52450629]
[1757299904451,0.18485681,111280.0,111270.0,0.52450629]
[1757299904878,0.18485681,111280.0,111270.0,0.34177333]
[1757299905122,0.18485681,111280.0,111270.0,0.15108]
[1757299905340,0.18485681,111280.0,111270.0,0.51935629]
[1757299905542,0.18485681,111280.0,111270.0,0.33961333]
[1757299907778,0.18485681,111280.0,111270.0,0.15108]
[1757299908421,0.17974296,111270.0,111260.0,0.17975912]
[1757299908638,0.18187296,111270.0,111260.0,0.51921245]
[1757299908856,0.18187296,111270.0,111260.0,0.52436245]
[1757299909094,0.17974296,111270.0,111260.0,0.52436245]
[1757299909575,0.17974296,111270.0,111260.0,0.52402687]
[1757299909760,0.18296681,111280.0,111260.0,0.52402687]
[1757299909761,0.18296681,111280.0,111260.0,0.52602687]
[1757299909976,0.18296681,111280.0,111260.0,0.52902687]
[1757299910624,0.17974296,111270.0,111260.0,0.52902687]
[1757299910825,0.17974296,111270.0,111260.0,0.52602687]
[1757299911852,0.17972681,111280.0,111260.0,0.52402687]
[1757299912271,0.17972681,111280.0,111270.0,0.18853333]
[1757299912676,0.18178681,111280.0,111270.0,0.18853333]
[1757299913534,0.18378681,111280.0,111270.0,0.18853333]
[1757299913892,0.18478681,111280.0,111270.0,0.18853333]
[1757299916307,0.18272681,111280.0,111270.0,0.37339629]
[1757299916751,0.18478681,111280.0,111270.0,0.18853333]
[1757299917226,0.18478681,111280.0,111270.0,0.37339629]
[1757299917460,0.18478681,111280.0,111270.0,0.19059333]
[1757299917876,0.18478681,111280.0,111270.0,0.18853333]
[1757299918709,0.17974296,111270.0,111260.0,0.18281406]
[1757299918924,0.18180296,111270.0,111260.0,0.34235333]
[1757299919109,0.18180296,111270.0,111260.0,0.52417245]
[1757299919366,0.18180296,111270.0,111260.0,0.34135333]
[1757299919579,0.17975912,111260.0,111250.0,0.72371885]
[1757299919794,0.18181912,111260.0,111250.0,1.06507218]
[1757299920015,0.00206,111260.0,111250.0,1.06507218]
[1757299920253,0.18181912,111260.0,111250.0,1.06507218]
[1757299920526,0.18181912,111260.0,111250.0,0.01206]
[1757299920705,0.18500912,111260.0,111250.0,0.34049528]
[1757299921205,0.18500912,111260.0,111250.0,0.52902861]
[1757299921680,0.18181912,111260.0,111250.0,0.52902861]
[1757299921867,0.18281912,111260.0,111250.0,0.53502861]
[1757299922260,0.18281912,111260.0,111250.0,0.54302861]
[1757299922698,0.18281912,111260.0,111250.0,0.54508861]
[1757299923231,0.18281912,111260.0,111250.0,0.54302861]
[1757299924584,0.18600912,111260.0,111250.0,0.54302861]
[1757299924790,0.18600912,111260.0,111250.0,0.54314861]
[1757299924989,0.18281912,111260.0,111250.0,0.54314861]
[1757299925663,0.001,111260.0,111250.0,0.54826861]
[1757299925876,0.18600912,111260.0,111250.0,0.36337333]
[1757299926093,0.18600912,111260.0,111250.0,0.21253333]
[1757299926295,0.18600912,111260.0,111250.0,0.36337333]
[1757299926718,0.18281912,111260.0,111250.0,0.54314861]
[1757299927971,0.18181912,111260.0,111250.0,0.53714861]
[1757299928178,0.18181912,111260.0,111250.0,0.54014861]
[1757299928599,0.18181912,111260.0,111250.0,0.53214861]
[1757299929073,0.18181912,111260.0,111250.0,0.53514861]
[1757299929735,0.18181912,111260.0,111250.0,0.53720861]
[1757299930573,0.18181912,111260.0,111250.0,0.53729904]
[1757299930849,0.18181912,111260.0,111250.0,0.34867528]
[1757299932246,0.18181912,111260.0,111250.0,0.34661528]
[1757299932458,0.18500912,111260.0,111250.0,0.16684]
[1757299932670,0.18500912,111260.0,111250.0,0.34661528]
[1757299933159,0.18500912,111260.0,111250.0,0.16692]
[1757299933411,0.18500912,111260.0,111250.0,0.016]
[1757299933644,0.46554887,111260.0,111250.0,0.016]
[1757299934305,0.46554887,111260.0,111250.0,0.013]
[1757299934512,0.46554887,111260.0,111250.0,0.01]
[1757299934733,0.46554887,111260.0,111250.0,0.012]
[1757299935384,0.46554887,111260.0,111250.0,0.01]
[1757299935631,0.27792511,111260.0,111250.0,0.01]
[1757299935855,0.46854887,111260.0,111250.0,0.01]
[1757299936285,0.49118887,111260.0,111250.0,0.01]
[1757299936711,0.51818891,111260.0,111250.0,0.01]
[1757299938245,0.66926891,111260.0,111250.0,0.01]
[1757299941992,0.71015937,111260.0,111250.0,0.01]
[1757299942504,0.71019937,111260.0,111250.0,0.01]
[1757299947092,0.55907937,111260.0,111250.0,0.01]
[1757299947299,0.71039937,111260.0,111250.0,0.01]
[1757299949308,0.52177561,111260.0,111250.0,0.01]
[1757299949535,0.37045561,111260.0,111250.0,0.01]
[1757299949757,0.36313916,111260.0,111250.0,0.38356904]
[1757299949939,0.33407912,111260.0,111250.0,0.38356904]
[1757299950148,0.15432,111260.0,111250.0,0.38356904]
[1757299950356,0.003,111260.0,111250.0,0.38356904]
[1757299950573,0.18275912,111260.0,111250.0,0.38356904]
[1757299951650,0.18479912,111260.0,111250.0,0.38356904]
[1757299952477,0.18782912,111260.0,111250.0,0.01]
[1757299956958,0.46836887,111260.0,111250.0,0.01]
[1757299957632,0.27974511,111260.0,111250.0,0.01]
[1757299957849,0.30674678,111260.0,111250.0,0.01]
[1757299959485,0.30371678,111260.0,111250.0,0.01]
[1757299961140,0.45523678,111260.0,111250.0,0.01517]
[1757299961720,0.45826678,111260.0,111250.0,0.01]
[1757299962324,0.45523678,111260.0,111250.0,0.01]
[1757299965789,0.45826678,111260.0,111250.0,0.01]
[1757299976032,0.45523678,111260.0,111250.0,0.01196]
[1757299976491,0.33463912,111260.0,111250.0,0.0152]
[1757299976931,0.33662912,111260.0,111250.0,0.01]
[1757299977361,0.33965912,111260.0,111250.0,0.01]
[1757299982013,0.33662912,111260.0,111250.0,0.01196]
[1757299982237,0.18275912,111260.0,111250.0,0.19497528]
[1757299982480,0.33483912,111260.0,111250.0,0.38359904]
[1757299982729,0.003,111260.0,111250.0,0.38359904]
[1757299982950,0.003,111260.0,111250.0,0.53567904]
[1757299984912,0.18275912,111260.0,111250.0,0.38359904]
[1757299985609,0.18474912,111260.0,111250.0,0.0152]
[1757299985823,0.18474912,111260.0,111250.0,0.01]
[1757299986034,0.46831887,111260.0,111250.0,0.01]
[1757299986770,0.49532051,111260.0,111250.0,0.01]
[1757299989289,0.45582675,111260.0,111250.0,0.01]
[1757299989461,0.45885675,111260.0,111250.0,0.01]
[1757299992547,0.64752158,111260.0,111250.0,0.01]
[1757299993708,0.45885675,111260.0,111250.0,0.01]
[1757299994523,0.64752158,111260.0,111250.0,0.01]
[1757299995297,0.30366675,111260.0,111250.0,0.01]
[1757299995572,0.45574675,111260.0,111250.0,0.19866483]
[1757299995802,0.42874511,111260.0,111250.0,0.01]
[1757300000166,0.45574488,111260.0,111250.0,0.01]
[1757300004209,0.45574488,111260.0,111250.0,0.01207]
[1757300004435,0.42846511,111260.0,111250.0,0.20383483]
[1757300004629,0.42647511,111260.0,111250.0,0.20383483]
[1757300005285,0.27467511,111260.0,111250.0,0.01517]
[1757300005488,0.42647511,111260.0,111250.0,0.20383483]
[1757300005638,0.42850511,111260.0,111250.0,0.20383483]
[1757300007946,0.42850511,111260.0,111250.0,0.20073483]